Cogmind - Beta 14 @@@ ROGUE MODE // 2024.08.22 @ 18:02:17 Player: Olafz Result: Self-destructed Performance ------------- Evolutions (1) 500 Regions Visited (3) 600 Robots Destroyed (15) 75 Value Destroyed (305) 305 Prototype IDs (0) 0 Alien Tech Used (0) 0 Bonus (0) 0 TOTAL SCORE: 1480 Bonus ------- None Cogmind --------- Core Integrity 238/400 Matter 300/300 Energy 125/125 System Corruption 0% Temperature Cool (0) Movement Walking (190) Ox1 Location -9/Mines Parts ------- > --- POWER (1) -------- Light Ion Engine > --- PROPULSION (2) --- Aluminum Leg > --- UTILITY (4) ------ Small Storage Unit Signal Interpreter Melee Analysis Suite Core Shielding > --- WEAPON (2) ------- Light Assault Rifle Katana > --- INVENTORY (8) ---- Light Ion Engine Light Ion Engine Improved Flight Unit Improved Flight Unit Improved Flight Unit Plasma Cutter Peak State ------------ > --- POWER ------------ Light Ion Engine > --- PROPULSION ------- Aluminum Leg Aluminum Leg > --- UTILITY ---------- Small Storage Unit Signal Interpreter Melee Analysis Suite Core Shielding > --- WEAPON ----------- Light Assault Rifle Katana > --- INVENTORY -------- Aluminum Leg Aluminum Leg Improved Flight Unit Improved Flight Unit Improved Flight Unit [Rating: 14] Favorites ----------- Power Light Ion Engine Engine Light Ion Engine Propulsion Aluminum Leg Leg Aluminum Leg Utility Small Storage Unit Storage Small Storage Unit Processor Signal Interpreter Protection Core Shielding Weapon Light Assault Rifle Ballistic Gun Light Assault Rifle Slashing Weapon Katana Build | -11 -10 -9 -9 ------- Run | Yrd Mat Mat Min Slots Evolved 2 | . . 2 . Power . | . . . . Propulsion . | . . . . Utility 2 | . . 2 . Weapon . | . . . . Parts Attached 18 | 5 1 12 . Power 5 | 1 . 4 . Engine 5 | 1 . 4 . Core . | . . . . Reactor . | . . . . Propulsion 7 | 2 . 5 . Treads . | . . . . Leg 7 | 2 . 5 . Wheel . | . . . . Hover . | . . . . Flight . | . . . . Utility 4 | 1 1 2 . Device . | . . . . Storage 1 | 1 . . . Processor 2 | . 1 1 . Hackware . | . . . . Protection 1 | . . 1 . Artifact . | . . . . Weapon 2 | 1 . 1 . Energy Gun . | . . . . Energy Cannon . | . . . . Ballistic Gun 1 | 1 . . . Ballistic Cannon . | . . . . Launcher . | . . . . Special Weapon . | . . . . Impact Weapon . | . . . . Slashing Weapon 1 | . . 1 . Piercing Weapon . | . . . . Special Melee Weapon . | . . . . Unidentified Prototypes . | . . . . Parts Lost 6 | . . 6 . Power 2 | . . 2 . Propulsion 4 | . . 4 . Utility . | . . . . Weapon . | . . . . Highest Loss Streak 4 | . . 4 . To Critical Strikes . | . . . . Average Slot Usage (%) 85 | . 77 88 88 Engine 10 | . 14 9 11 Leg 20 | . 28 18 11 Storage 11 | . 14 11 11 Processor 17 | . 6 20 22 Protection 6 | . . 7 11 Ballistic Gun 11 | . 14 11 11 Slashing Weapon 7 | . . 9 11 Peak Build Rating 14 | 5 6 14 13 Average Rating 9 | 4 5 11 13 On Entrance 6 | . 5 6 13 Naked Turns . | . . . . Heaviest Build 14 | 9 9 14 12 Greatest Support 20 | 20 20 20 10 Greatest Overweight (x) 1 | . . 1 1 Average Overweight (x) . | . . . 1 Largest Inventory Capacity 8 | 8 8 8 8 Average Capacity 7 | 6 8 8 8 Most Carried 7 | 1 1 7 6 Average Carried 3 | . 1 4 6 Final Capacity 8 | 8 8 8 8 Final Carried 6 | 1 1 6 6 Class Distribution -------------------- 57% | Scavenger-Mutant 42% | Mutant Dominant Class ---------------- Mutant | -10/Materials Scavenger-Mutant | -9/Materials Scavenger-Mutant | -9/Mines Resources | -11 -10 -9 -9 ----------- Run | Yrd Mat Mat Min Matter Collected 390 | 250 27 113 . Remotely . | . . . . Salvage Created 591 | . 27 564 . Parts 30 | . 4 26 . Haulers Intercepted 1 | . . 1 . Recyclers Shooed 1 | . 1 . . Parts Field Recycled . | . . . . Retrieved Matter . | . . . . Parts Self-Destructed . | . . . . Prevented . | . . . . Kills | -11 -10 -9 -9 ------- Run | Yrd Mat Mat Min Combat Hostiles Destroyed 11 | . . 11 . Melee 10 | . . 10 . Guns 1 | . . 1 . Classes Destroyed 7 | . 1 6 . Hauler 1 | . . 1 . Recycler 2 | . . 2 . Mechanic 1 | . 1 . . Swarmer 5 | . . 5 . Grunt 4 | . . 4 . Duelist 1 | . . 1 . Sentry 1 | . . 1 . Best Kill Streak 6 | . 1 6 . Combat Bots Only 4 | . . 4 . Max Kills in Single Turn 1 | . 1 1 . Gunslinging . | . . . . Exploded . | . . . . Melee 1 | . . 1 . Uniques/NPCs Destroyed . | . . . . Combat | -11 -10 -9 -9 -------- Run | Yrd Mat Mat Min Hostile Shots Fired 81 | . . 81 . Missed 20 | . . 20 . Damage Taken 738 | . . 738 . Core 162 | . . 162 . Absorbed by Shields . | . . . . Redirected to Shielding 8 | . . 8 . Core Remaining (%) 100 | 100 100 . . Volleys Fired 30 | . 19 11 . Largest 1 | . 1 1 . Hottest 20 | . 20 20 . Shots Fired 30 | . 19 11 . Gun 30 | . 19 11 . Cannon . | . . . . Launcher . | . . . . Special . | . . . . Kinetic 30 | . 19 11 . Thermal . | . . . . Explosive . | . . . . Electromagnetic . | . . . . Robot Hit Streak 12 | . 11 12 . Robot Miss Streak 3 | . 3 1 . Penetration Max . | . . . . Secondary Targets . | . . . . Shots Hit Robots 51 | . 14 37 . Core Hits 21 | . 4 17 . Critical Kills . | . . . . Critical Parts Destroyed . | . . . . Critical Strikes 1 | . . 1 . Sever 1 | . . 1 . Melee Attacks 29 | . . 29 . Impact . | . . . . Slashing 29 | . . 29 . Piercing . | . . . . Sneak Attacks 5 | . . 5 . Combat Hostiles . | . . . . Follow-up Attacks . | . . . . Damage Inflicted 1255 | . 118 1137 . Guns 191 | . 118 73 . Cannons . | . . . . Explosions . | . . . . Melee 1064 | . . 1064 . Ramming . | . . . . Kinetic 191 | . 118 73 . Thermal . | . . . . Explosive . | . . . . Electromagnetic . | . . . . Impact . | . . . . Slashing 1064 | . . 1064 . Piercing . | . . . . Highest Corruption . | . . . . Average Corruption . | . . . . Corruption Purged . | . . . . Corruption Blocked . | . . . . Overload Shots . | . . . . Overflow Damage 82 | . . 82 . Projectiles . | . . . . Explosions . | . . . . Melee 82 | . . 82 . Knockbacks . | . . . . Impact . | . . . . Kinetic . | . . . . Secondary . | . . . . Self-Inflicted Damage . | . . . . Shots . | . . . . Rammed . | . . . . Targets Rammed . | . . . . Kicked . | . . . . Crushed . | . . . . Highest Temperature 9 | . . 9 . Average Temperature 6 | . . 6 . Received Heat Transfer 183 | . . 183 . Siege Activations . | . . . . Robots Corrupted . | . . . . Combat Hostiles . | . . . . Parts Fried . | . . . . Impact Corruptions . | . . . . Robots Melted . | . . . . Combat Hostiles . | . . . . Parts Melted . | . . . . Heat Transferred . | . . . . Parts Sabotaged . | . . . . Parts Stolen . | . . . . Parts Stripped . | . . . . Power Chain Reactions . | . . . . Alert | -11 -10 -9 -9 ------- Run | Yrd Mat Mat Min Peak Influence 273 | . 5 273 43 Initial 43 | . . 1 43 Average 78 | . 1 114 43 Maximum Alert Level 1 | . . 1 . Low Security (%) 95 | 100 100 92 100 Level 1 4 | . . 7 . Level 2 . | . . . . Level 3 . | . . . . Level 4 . | . . . . Level 5 . | . . . . High Security . | . . . . Max Security . | . . . . Squads Dispatched 1 | . . 1 . Investigation . | . . . . Extermination . | . . . . Reinforcement 1 | . . 1 . Assault . | . . . . Garrison . | . . . . Intercept . | . . . . Searches Triggered . | . . . . Construction Impeded . | . . . . Haulers Reinforced . | . . . . Active Scanning Responses . | . . . . Cargo Convoy Interrupts . | . . . . Stealth | -11 -10 -9 -9 --------- Run | Yrd Mat Mat Min Distress Signals . | . . . . Communications Jammed . | . . . . Distress Signals . | . . . . Times Spotted 19 | . 3 16 . Peak Tracking Total 5 | . 1 5 . Tactical Retreats 3 | . . 3 . Traps | -11 -10 -9 -9 ------- Run | Yrd Mat Mat Min Traps Triggered . | . . . . Indirectly . | . . . . Trap Hack Attempts . | . . . . Triggered . | . . . . Disarmed . | . . . . Reprogrammed . | . . . . Reused . | . . . . Traps Extracted . | . . . . Installed . | . . . . Triggered . | . . . . Machines | -11 -10 -9 -9 ---------- Run | Yrd Mat Mat Min Machines Disabled . | . . . . Max in Single Turn . | . . . . Machines Repaired . | . . . . Machines Dismantled . | . . . . Machines Sabotaged . | . . . . Overloaded Fab Kills . | . . . . Hacking | -11 -10 -9 -9 --------- Run | Yrd Mat Mat Min Machines Accessed . | . . . . Terminals . | . . . . Fabricators . | . . . . Repair Stations . | . . . . Recycling Units . | . . . . Scanalyzers . | . . . . Garrison Access . | . . . . Total Hacks . | . . . . Successful . | . . . . Failed . | . . . . Catastrophic . | . . . . Database Lockouts . | . . . . Manual . | . . . . Terminals . | . . . . Fabricators . | . . . . Repair Stations . | . . . . Recycling Units . | . . . . Scanalyzers . | . . . . Garrison Access . | . . . . Terminal Hacks . | . . . . Fabricator Hacks . | . . . . Repair Station Hacks . | . . . . Recycling Unit Hacks . | . . . . Scanalyzer . | . . . . Garrison Access Hacks . | . . . . Unauthorized Hacks . | . . . . Terminals . | . . . . Fabricators . | . . . . Repair Stations . | . . . . Recycling Units . | . . . . Scanalyzers . | . . . . Garrison Access . | . . . . Data Cores Recovered . | . . . . Used . | . . . . Hacking Detections . | . . . . Full Trace Events . | . . . . Feedback Events . | . . . . Feedback Blocked . | . . . . Robot Schematics Acquired . | . . . . Robots Built . | . . . . Authchips . | . . . . Time . | . . . . Total Robot Build Rating . | . . . . Part Schematics Acquired . | . . . . Parts Built . | . . . . Authchips . | . . . . Time . | . . . . Total Part Build Rating . | . . . . Parts Repaired . | . . . . Time . | . . . . Parts Recycled . | . . . . Recycled Matter . | . . . . Retrieved Matter . | . . . . Retrieved Components . | . . . . Parts Scanalyzed . | . . . . Part Schematics Acquired . | . . . . Parts Damaged . | . . . . Bothacking | -11 -10 -9 -9 ------------ Run | Yrd Mat Mat Min Used RIF Installer . | . . . . Robots Hacked . | . . . . Non-combat . | . . . . Combat . | . . . . Robot Hacks Applied . | . . . . Relay Couplers Released . | . . . . Fabnet Peak Effective % . | . . . . Robots Rewired . | . . . . Allies Hacked . | . . . . Hacks Repelled . | . . . . Allies | -11 -10 -9 -9 -------- Run | Yrd Mat Mat Min Total Allies . | . . . . Largest Group . | . . . . Highest-Rated Group . | . . . . Highest-Rated Ally . | . . . . Total Orders . | . . . . Ally Attacks . | . . . . Total Damage . | . . . . Kills . | . . . . Allies Corrupted . | . . . . Allies Melted . | . . . . Intel | -11 -10 -9 -9 ------- Run | Yrd Mat Mat Min Robot Analysis Total . | . . . . Derelict Logs Recovered . | . . . . Drone Launches . | . . . . Drone Recoveries . | . . . . Exploration | -11 -10 -9 -9 ------------- Run | Yrd Mat Mat Min Turns Passed 842 | 76 162 566 38 Spaces Moved 512 | 59 106 327 20 Core 3 | 3 . . . Treads . | . . . . Legs 509 | 56 106 327 20 Wheels . | . . . . Hover . | . . . . Flight . | . . . . Fastest Speed 50 | 50 120 120 190 Average Speed 132 | 116 120 136 190 Slowest Speed 190 | 120 120 190 190 Overloaded Moves . | . . . . Propulsion Burnouts . | . . . . Robots Hopped . | . . . . Cave-ins Triggered . | . . . . Exploration Rate (%) 22 | 4 35 33 18 Regions Visited 3 Branch Regions 1 Pre-discovered Areas . | . . . . Known Exits Taken 2 | . 1 1 . Unknown Exits Taken 1 | 1 . . . Scrap Searched . | . . . . Spaces Dug . | . . . . Terrain Destroyed . | . . . . Melee . | . . . . Projectile . | . . . . AOE . | . . . . Terrain Rammed . | . . . . Walls Destroyed . | . . . . Machines Disabled . | . . . . Actions | -11 -10 -9 -9 --------- Run | Yrd Mat Mat Min Total 599 | 64 125 390 20 Wait 6 | . . 6 . Move 509 | 58 105 326 20 Hop . | . . . . Pick Up 7 | 1 . 6 . Fast Attach 11 | 5 1 5 . Attach 4 | . . 4 . Detach . | . . . . Swap 3 | . . 3 . Drop . | . . . . Fire 30 | . 19 11 . Melee 29 | . . 29 . Ram . | . . . . Kick . | . . . . Crush . | . . . . Escape Stasis . | . . . . Rewire . | . . . . Trap . | . . . . Miscellaneous . | . . . . Route ------- -11/Scrapyard -10/Materials -9/Materials -9/Mines History --------- Turn | Location | Event 6 | -11/Scrapyard | Discovered new exit (range 15) 77 | -11/Scrapyard | Entered Materials 223 | -10/Materials | Discovered new exit (range 5) 238 | -10/Materials | Identified exit to Materials 239 | -10/Materials | Entered another Materials area 239 | -9/Materials | Evolved 2 slots: Utility x2 300 | -9/Materials | Build established: Mutant 663 | -9/Materials | Build established: Scavenger-Mutant 677 | -9/Materials | Lost 4 parts (1p3n) 714 | -9/Materials | Discovered new exit (range 15) 803 | -9/Materials | Identified exit to Mines 805 | -9/Materials | Entered Mines 843 | -9/Mines | Self-destructed Last Messages --------------- S-10 Pest destroyed. Acquired Lgt. Ion Engine. Acquired 7 matter. R-06 Scavenger collects Flight Unit. Acquired 3 matter. R-06 Scavenger collects Lgt. Assault Rifle. O-16 Technician: "IFF HANDSHAKE FAILED. SECURING TERMINAL." O-16 Technician uses terminal to summon reinforcements. ALERT: Hostiles spotted, dispatching reinforcements to Terminal M011. O-16 Technician locks terminal. K-01 Serf collects debris. T-07 Excavator is excavating. U-05 Engineer lays Concrete. T-07 Excavator is excavating. U-05 Engineer lays Concrete. U-05 Engineer builds a Wall. EXIT=FOUND EXIT=IDENTIFIED: MINES LOCATION=MINES GOAL=ESCAPE Map ----- +----------------------------------------------------+ | ????????????????????????????????????? | | ????????????????????????????????????? | | ????????????????????????????????????? | | ????????????????????????????????????? | | ????????????????????????????????????? | | ????????????????????????????????????? | | ????????????????????????????????????? | | ????????????????????????????????????? | | ????????????????????????????????????? | | ????????????????????????????????????? | | ????????????????????????????????????? | | ????????????????????????????????????? | | ????????? ?????????????????????##???? | | ????????? ???????????????????? ##??? | | ???????? ???????????????????? #??? | | ???????? ??????????????????? #??? | | ???????? ??????????????????? #??? | | ??????? ??????????????????# #??? | | ???????? ##???????????????# #??? | | ??????? ####???????????# #??? | | ???????? ##????????## #???? | | ????????? #????????# ##??? | | ?????????# #???????## ##?? | | ????????## #???????# #?? | | ???###### ##??????# ??? | | ??## ##????## @ #??????? | | ??# ##??## ###??????? | | ??# ## #??# ##????????? | | ?# #### #### #?????????? | | #?## ## #?????????? | | #?# ##?????????? | | #?# ###??????????? | | #?## ##????????????? | | #??## ##?????????????? | | # #????## ##??????????????? | | #####??????# ##???????????????? | | ???????????## ##????????????????? | | ????????????#######?????????????????? | | ????????????????????????????????????? | | ????????????????????????????????????? | | | | | | | | | | | | | | | | | | | | | +----------------------------------------------------+ Best States ------------- Heat Dissipation 28 Energy Generation 10 Energy Capacity 250 Matter Stores 300 Matter Capacity 300 Sight Range 16 Terrain Scan Density 10 Core Shielding 20 Evasion (%) 55 Melee Accuracy 5 Item Schematics ----------------- None Robot Schematics ------------------ None Fabricated ------------ Nothing Alien Tech Used ----------------- None Achievements -------------- None Challenges ------------ None Game ------ Seed ArmageddonSlugTerrabomb Manual? 0 Play Time 00:05:57 Cumulative 240.6 hours Start 2024.08.22 @ 17:44:49 End 2024.08.22 @ 18:02:17 Sessions 1 Manual Loads 0 Difficulty Rogue Special Mode None Game No. 423 Rogue 421 Adventurer 2 Explorer 0 Win Type - Total 10 Types 8/0/0/2/0/0/0/0/0 Lore% 73 Gallery% 68 Achievement% 56 Wizard Run 0 Options --------- Layout 0 ASCII 0 Keyboard 1 Movement Numpad Keybinds 1 Fullscreen 2 Font 18/SmallcapsGlow Map View 76x50 Zoom Use 0% Tactical HUD 1 Map Filters NONE Filters NONE Steam 1 RUN: 8bb92f87-6f6b-4307-b860-ee384f221c93